[Event "*** Titled Tuesday Blitz"]
[Site "Chess.com"]
[Date "2020.04.07"]
[Round "4"]
[White "Rish_97"]
[Black "TheBigBoss04"]
[Result "1-0"]
[WhiteElo "2576"]
[BlackElo "2778"]
[TimeControl "180+1"]
[EndTime "13:42:04 PDT"]
[Termination "Rish_97 won by checkmate"]

1. Nf3 {[%clk 0:03:00.1]} 1... c5 {[%clk 0:02:59.7]} 2. c4 {[%clk 0:02:54.3]}
2... Nc6 {[%clk 0:03:00]} 3. Nc3 {[%clk 0:02:53.8]} 3... e5 {[%clk 0:03:00.3]}
4. g3 {[%clk 0:02:52.5]} 4... g6 {[%clk 0:03:00.6]} 5. Bg2 {[%clk 0:02:52.7]}
5... Bg7 {[%clk 0:03:01.3]} 6. O-O {[%clk 0:02:52.6]} 6... Nge7 {[%clk
0:03:01.6]} 7. d3 {[%clk 0:02:37]} 7... d6 {[%clk 0:03:01.5]} 8. a3 {[%clk
0:02:37.4]} 8... O-O {[%clk 0:03:01]} 9. Rb1 {[%clk 0:02:36.8]} 9... a5 {[%clk
0:03:01.3]} 10. b3 {[%clk 0:02:36.4]} 10... Rb8 {[%clk 0:02:56.8]} 11. Bb2
{[%clk 0:02:32.8]} 11... h6 {[%clk 0:02:54.7]} 12. Nd2 {[%clk 0:02:32.8]} 12...
Be6 {[%clk 0:02:54.3]} 13. Nd5 {[%clk 0:02:32.3]} 13... f5 {[%clk 0:02:50.7]}
14. f4 {[%clk 0:02:24.8]} 14... Kh7 {[%clk 0:02:28.1]} 15. e3 {[%clk 0:02:23.6]}
15... b5 {[%clk 0:02:11.6]} 16. Qc2 {[%clk 0:02:10.9]} 16... Qd7 {[%clk
0:02:05.7]} 17. Ba1 {[%clk 0:01:48.6]} 17... b4 {[%clk 0:01:55.6]} 18. a4 {[%clk
0:01:47.8]} 18... Ng8 {[%clk 0:01:43.6]} 19. Rbe1 {[%clk 0:01:46.5]} 19... Nf6
{[%clk 0:01:43.2]} 20. Qd1 {[%clk 0:01:37.1]} 20... Ne7 {[%clk 0:01:38.4]} 21.
Nxe7 {[%clk 0:01:36.2]} 21... Qxe7 {[%clk 0:01:38.2]} 22. fxe5 {[%clk
0:01:37.1]} 22... dxe5 {[%clk 0:01:38.3]} 23. Bxe5 {[%clk 0:01:38]} 23... Rbd8
{[%clk 0:01:37.9]} 24. d4 {[%clk 0:01:37.5]} 24... Bg8 {[%clk 0:01:22.9]} 25.
Qa1 {[%clk 0:01:14.3]} 25... Ng4 {[%clk 0:01:12.9]} 26. Bxg7 {[%clk 0:01:12.7]}
26... Qxg7 {[%clk 0:01:13.8]} 27. h3 {[%clk 0:01:09.8]} 27... Nf6 {[%clk
0:01:03]} 28. d5 {[%clk 0:01:07.1]} 28... Nh5 {[%clk 0:01:03]} 29. Qxg7+ {[%clk
0:01:03.9]} 29... Kxg7 {[%clk 0:01:03.9]} 30. Kh2 {[%clk 0:01:02.4]} 30... Rfe8
{[%clk 0:01:02.4]} 31. e4 {[%clk 0:01:02.2]} 31... fxe4 {[%clk 0:00:37.9]} 32.
Nxe4 {[%clk 0:01:03.1]} 32... Rc8 {[%clk 0:00:30.3]} 33. g4 {[%clk 0:01:02.1]}
33... Nf6 {[%clk 0:00:24.6]} 34. Rxf6 {[%clk 0:00:49.9]} 34... Rxe4 {[%clk
0:00:24.5]} 35. Rxg6+ {[%clk 0:00:50.2]} 35... Kxg6 {[%clk 0:00:25.4]} 36. Rxe4
{[%clk 0:00:50.1]} 36... Kf6 {[%clk 0:00:26.3]} 37. Kg3 {[%clk 0:00:49.2]} 37...
Bh7 {[%clk 0:00:23.9]} 38. Re6+ {[%clk 0:00:48.7]} 38... Kf7 {[%clk 0:00:24.4]}
39. Be4 {[%clk 0:00:46.8]} 39... Bg8 {[%clk 0:00:19.2]} 40. Rxh6 {[%clk
0:00:43.8]} 40... Kg7 {[%clk 0:00:19.7]} 41. Rg6+ {[%clk 0:00:42.9]} 41... Kf7
{[%clk 0:00:20.6]} 42. Re6 {[%clk 0:00:35]} 42... Kg7 {[%clk 0:00:20.7]} 43. Re5
{[%clk 0:00:33.9]} 43... Kf6 {[%clk 0:00:20.2]} 44. Rf5+ {[%clk 0:00:34.2]}
44... Ke7 {[%clk 0:00:20.1]} 45. h4 {[%clk 0:00:34.3]} 45... Kd6 {[%clk
0:00:13.2]} 46. g5 {[%clk 0:00:28.9]} 46... Re8 {[%clk 0:00:09.9]} 47. Kf4
{[%clk 0:00:29]} 47... Kd7 {[%clk 0:00:06.7]} 48. h5 {[%clk 0:00:28.6]} 48...
Bh7 {[%clk 0:00:02.1]} 49. Rf7+ {[%clk 0:00:27.3]} 49... Kd6 {[%clk 0:00:02.8]}
50. Rf6+ {[%clk 0:00:22.8]} 50... Kd7 {[%clk 0:00:02.4]} 51. Bxh7 {[%clk
0:00:21.5]} 51... Re1 {[%clk 0:00:03.3]} 52. Bf5+ {[%clk 0:00:20.8]} 52... Kd8
{[%clk 0:00:03.6]} 53. Rd6+ {[%clk 0:00:19.6]} 53... Kc7 {[%clk 0:00:02.8]} 54.
Rc6+ {[%clk 0:00:20.1]} 54... Kb7 {[%clk 0:00:03.4]} 55. Rxc5 {[%clk 0:00:20.6]}
55... Rf1+ {[%clk 0:00:03.1]} 56. Ke5 {[%clk 0:00:20.6]} 56... Rf3 {[%clk
0:00:03.4]} 57. d6 {[%clk 0:00:20.2]} 57... Rxb3 {[%clk 0:00:02.5]} 58. d7
{[%clk 0:00:19.3]} 58... Re3+ {[%clk 0:00:01.3]} 59. Be4+ {[%clk 0:00:19.2]}
59... Kb6 {[%clk 0:00:01.1]} 60. d8=Q+ {[%clk 0:00:17.8]} 60... Kxc5 {[%clk
0:00:02]} 61. Qd4# {[%clk 0:00:17.8]} 1-0

[Event "*** Titled Tuesday Blitz"]
[Site "Chess.com"]
[Date "2020.04.07"]
[Round "4"]
[White "MartinCerveny"]
[Black "THORK"]
[Result "1-0"]
[WhiteElo "2633"]
[BlackElo "2334"]
[TimeControl "180+1"]
[EndTime "13:42:07 PDT"]
[Termination "MartinCerveny won by resignation"]

1. d4 {[%clk 0:03:00.9]} 1... d5 {[%clk 0:02:59.4]} 2. c4 {[%clk 0:03:00.9]}
2... Bf5 {[%clk 0:02:59.7]} 3. cxd5 {[%clk 0:02:59.6]} 3... Bxb1 {[%clk
0:02:59.1]} 4. Rxb1 {[%clk 0:02:59]} 4... Qxd5 {[%clk 0:02:58.3]} 5. a3 {[%clk
0:02:57.4]} 5... c6 {[%clk 0:02:57.4]} 6. Nf3 {[%clk 0:02:56.3]} 6... Nf6 {[%clk
0:02:57.5]} 7. e3 {[%clk 0:02:56.3]} 7... Nbd7 {[%clk 0:02:55.5]} 8. Be2 {[%clk
0:02:55.7]} 8... e6 {[%clk 0:02:54]} 9. O-O {[%clk 0:02:55.5]} 9... Bd6 {[%clk
0:02:43.6]} 10. Bd2 {[%clk 0:02:48.8]} 10... O-O {[%clk 0:02:38.2]} 11. b4
{[%clk 0:02:41.5]} 11... a6 {[%clk 0:02:37.2]} 12. Qc2 {[%clk 0:02:40.3]} 12...
Qf5 {[%clk 0:02:17.3]} 13. Qxf5 {[%clk 0:02:29.4]} 13... exf5 {[%clk 0:02:17.2]}
14. Bd3 {[%clk 0:02:22.4]} 14... g6 {[%clk 0:02:16.9]} 15. Rfc1 {[%clk
0:02:22.4]} 15... Nb6 {[%clk 0:02:15.9]} 16. g3 {[%clk 0:02:20.1]} 16... Rfe8
{[%clk 0:02:13.9]} 17. Bc3 {[%clk 0:02:09.9]} 17... Nfd5 {[%clk 0:02:10.8]} 18.
Bd2 {[%clk 0:02:02.7]} 18... Rad8 {[%clk 0:02:05.1]} 19. Bc2 {[%clk 0:01:57.7]}
19... Nc4 {[%clk 0:02:00.8]} 20. a4 {[%clk 0:01:43.5]} 20... Na3 {[%clk
0:01:58.7]} 21. Rb2 {[%clk 0:01:42.2]} 21... Nxc2 {[%clk 0:01:58.9]} 22. Rcxc2
{[%clk 0:01:42.1]} 22... Rc8 {[%clk 0:01:48.3]} 23. Ne1 {[%clk 0:01:41.1]} 23...
b5 {[%clk 0:01:44.7]} 24. Nd3 {[%clk 0:01:38.6]} 24... Nb6 {[%clk 0:01:40.1]}
25. a5 {[%clk 0:01:32.5]} 25... Nc4 {[%clk 0:01:36.7]} 26. Rb3 {[%clk
0:01:31.3]} 26... f6 {[%clk 0:01:32.9]} 27. Be1 {[%clk 0:01:27.6]} 27... Bf8
{[%clk 0:01:30.9]} 28. Nb2 {[%clk 0:01:26.8]} 28... Nxb2 {[%clk 0:01:14.6]} 29.
Rcxb2 {[%clk 0:01:23.4]} 29... Rcd8 {[%clk 0:01:12.7]} 30. Rc2 {[%clk
0:01:23.1]} 30... Rd6 {[%clk 0:01:12.9]} 31. Kf1 {[%clk 0:01:18.1]} 31... Ree6
{[%clk 0:01:11.3]} 32. Rb1 {[%clk 0:01:12.6]} 32... Kf7 {[%clk 0:01:11.5]} 33.
Rbc1 {[%clk 0:01:07]} 33... Ke8 {[%clk 0:01:11.5]} 34. Bc3 {[%clk 0:01:05.3]}
34... Kd7 {[%clk 0:01:11.2]} 35. Ke2 {[%clk 0:01:05.2]} 35... Rd5 {[%clk
0:01:10.7]} 36. Kd3 {[%clk 0:01:04.7]} 36... g5 {[%clk 0:01:10.2]} 37. f3 {[%clk
0:01:04.1]} 37... h5 {[%clk 0:01:04.5]} 38. e4 {[%clk 0:01:03.9]} 38... fxe4+
{[%clk 0:01:03.5]} 39. fxe4 {[%clk 0:01:04.8]} 39... Rdd6 {[%clk 0:01:03.8]} 40.
Rf1 {[%clk 0:01:04.6]} 40... Bg7 {[%clk 0:01:03]} 41. Rf5 {[%clk 0:01:04.2]}
41... Re7 {[%clk 0:00:58]} 42. h3 {[%clk 0:01:02.1]} 42... Rde6 {[%clk
0:00:57.3]} 43. Re2 {[%clk 0:01:02.1]} 43... Re8 {[%clk 0:00:55.1]} 44. g4
{[%clk 0:01:01.7]} 44... h4 {[%clk 0:00:54.7]} 45. Re3 {[%clk 0:00:53.7]} 45...
Kc7 {[%clk 0:00:54.2]} 46. Re2 {[%clk 0:00:49]} 46... R8e7 {[%clk 0:00:52.6]}
47. d5 {[%clk 0:00:48.2]} 47... cxd5 {[%clk 0:00:52.3]} 48. Rxd5 {[%clk
0:00:47.6]} 48... Rd7 {[%clk 0:00:51.6]} 49. Rf2 {[%clk 0:00:45.3]} 49... Rdd6
{[%clk 0:00:47.9]} 50. Rf5 {[%clk 0:00:44.4]} 50... Kc6 {[%clk 0:00:47.2]} 51.
Bd4 {[%clk 0:00:44.1]} 51... Kd7 {[%clk 0:00:44.3]} 52. Rc5 {[%clk 0:00:41.3]}
52... Re5 {[%clk 0:00:39.4]} 53. Ke3 {[%clk 0:00:36.4]} 53... Rxf5 {[%clk
0:00:38.3]} 54. exf5 {[%clk 0:00:33.9]} 54... Rc6 {[%clk 0:00:36.2]} 55. Rd5+
{[%clk 0:00:31.2]} 55... Rd6 {[%clk 0:00:33.6]} 56. Ke4 {[%clk 0:00:31.2]} 56...
Kc6 {[%clk 0:00:33.3]} 57. Rc5+ {[%clk 0:00:28.2]} 57... Kd7 {[%clk 0:00:33]}
58. Rc2 {[%clk 0:00:27.4]} 58... Rc6 {[%clk 0:00:29]} 59. Bc5 {[%clk 0:00:27]}
59... Ke8 {[%clk 0:00:27.3]} 60. Kd5 {[%clk 0:00:26.9]} 60... Rc8 {[%clk
0:00:26.6]} 61. Re2+ {[%clk 0:00:24.7]} 61... Kf7 {[%clk 0:00:26]} 62. Re7+
{[%clk 0:00:24.4]} 62... Kg8 {[%clk 0:00:26.5]} 63. Ra7 {[%clk 0:00:24.5]} 63...
Rd8+ {[%clk 0:00:26]} 64. Ke6 {[%clk 0:00:24.3]} 64... Rd3 {[%clk 0:00:18.3]}
65. Rxa6 {[%clk 0:00:23.7]} 65... Rxh3 {[%clk 0:00:17.9]} 66. Ra8+ {[%clk
0:00:23.7]} 66... Kh7 {[%clk 0:00:17.6]} 67. a6 {[%clk 0:00:24.6]} 67... Ra3
{[%clk 0:00:12.3]} 68. a7 {[%clk 0:00:24.3]} 68... h3 {[%clk 0:00:12.7]} 69. Bd6
{[%clk 0:00:23.9]} 69... Ra6 {[%clk 0:00:11.9]} 70. Kd5 {[%clk 0:00:19.9]} 70...
Rxd6+ {[%clk 0:00:07.3]} 71. Kxd6 {[%clk 0:00:18.9]} 71... h2 {[%clk 0:00:08.2]}
72. Rh8+ {[%clk 0:00:18.6]} 72... Bxh8 {[%clk 0:00:07.7]} 73. a8=Q {[%clk
0:00:19.5]} 1-0

[Event "*** Titled Tuesday Blitz"]
[Site "Chess.com"]
[Date "2020.04.07"]
[Round "4"]
[White "Mr_Sinigami"]
[Black "jamengrand"]
[Result "1/2-1/2"]
[WhiteElo "2603"]
[BlackElo "2177"]
[TimeControl "180+1"]
[EndTime "13:42:08 PDT"]
[Termination "Game drawn - insufficient material"]

1. d4 {[%clk 0:03:00.6]} 1... d5 {[%clk 0:02:58.7]} 2. Nf3 {[%clk 0:03:01.5]}
2... Nf6 {[%clk 0:02:55.8]} 3. Bf4 {[%clk 0:03:02.4]} 3... e6 {[%clk 0:02:55.4]}
4. e3 {[%clk 0:03:03.3]} 4... Bd6 {[%clk 0:02:55.4]} 5. Bg3 {[%clk 0:02:56]}
5... O-O {[%clk 0:02:54.7]} 6. Nbd2 {[%clk 0:02:54.8]} 6... b6 {[%clk
0:02:54.3]} 7. Ne5 {[%clk 0:02:48.9]} 7... c5 {[%clk 0:02:49.1]} 8. c3 {[%clk
0:02:47.4]} 8... Qc7 {[%clk 0:02:48]} 9. Bd3 {[%clk 0:02:44.7]} 9... Nbd7 {[%clk
0:02:47.6]} 10. f4 {[%clk 0:02:43.1]} 10... Bb7 {[%clk 0:02:40.1]} 11. Qb1
{[%clk 0:02:39.5]} 11... a5 {[%clk 0:02:19.5]} 12. a4 {[%clk 0:02:36.6]} 12...
Ba6 {[%clk 0:02:14.3]} 13. O-O {[%clk 0:02:34.1]} 13... Bxd3 {[%clk 0:02:13.4]}
14. Qxd3 {[%clk 0:02:31.9]} 14... Qb7 {[%clk 0:02:04.6]} 15. Qb5 {[%clk
0:02:10.7]} 15... Rfd8 {[%clk 0:01:56.9]} 16. f5 {[%clk 0:01:58.4]} 16... Bxe5
{[%clk 0:01:54.3]} 17. dxe5 {[%clk 0:01:51.9]} 17... Ne4 {[%clk 0:01:53.4]} 18.
Nxe4 {[%clk 0:01:47.4]} 18... dxe4 {[%clk 0:01:54.3]} 19. fxe6 {[%clk 0:01:40]}
19... fxe6 {[%clk 0:01:55.2]} 20. Rad1 {[%clk 0:01:37.8]} 20... Nf8 {[%clk
0:01:54.1]} 21. Rd6 {[%clk 0:01:37.1]} 21... Rab8 {[%clk 0:01:49.5]} 22. Rfd1
{[%clk 0:01:28.3]} 22... Qe7 {[%clk 0:01:44.6]} 23. h3 {[%clk 0:01:10.6]} 23...
h6 {[%clk 0:01:42.6]} 24. Kh2 {[%clk 0:01:09.3]} 24... Kh7 {[%clk 0:01:39.6]}
25. Qc6 {[%clk 0:01:08.7]} 25... Rdc8 {[%clk 0:01:36.3]} 26. Qxe4+ {[%clk
0:01:07.9]} 26... Kh8 {[%clk 0:01:32.8]} 27. Rf1 {[%clk 0:01:03.6]} 27... Rc7
{[%clk 0:01:29.8]} 28. Bh4 {[%clk 0:01:02.3]} 28... Qe8 {[%clk 0:01:23.6]} 29.
Rfd1 {[%clk 0:00:53.9]} 29... Kg8 {[%clk 0:01:21.3]} 30. Rd8 {[%clk 0:00:45.9]}
30... Rxd8 {[%clk 0:01:20.5]} 31. Rxd8 {[%clk 0:00:46.5]} 31... Qf7 {[%clk
0:01:20.4]} 32. Qf3 {[%clk 0:00:42.3]} 32... Qxf3 {[%clk 0:01:12.8]} 33. gxf3
{[%clk 0:00:41.6]} 33... Kf7 {[%clk 0:01:12.6]} 34. Rd6 {[%clk 0:00:37.4]} 34...
Rd7 {[%clk 0:01:11.2]} 35. Rxd7+ {[%clk 0:00:22.4]} 35... Nxd7 {[%clk
0:01:10.6]} 36. f4 {[%clk 0:00:22.9]} 36... c4 {[%clk 0:01:10.5]} 37. Bf2 {[%clk
0:00:19]} 37... Nc5 {[%clk 0:01:08.2]} 38. e4 {[%clk 0:00:18.3]} 38... Nxa4
{[%clk 0:01:08]} 39. Kg3 {[%clk 0:00:18]} 39... Nxb2 {[%clk 0:01:07.6]} 40. Bxb6
{[%clk 0:00:18.2]} 40... a4 {[%clk 0:01:06.9]} 41. Bc5 {[%clk 0:00:18.7]} 41...
Nd1 {[%clk 0:01:00.4]} 42. Bb4 {[%clk 0:00:18.3]} 42... a3 {[%clk 0:01:00.3]}
43. Bxa3 {[%clk 0:00:16.3]} 43... Nxc3 {[%clk 0:01:00.4]} 44. Kf3 {[%clk
0:00:16.9]} 44... g5 {[%clk 0:00:58.3]} 45. f5 {[%clk 0:00:15.3]} 45... h5
{[%clk 0:00:55.3]} 46. Ke3 {[%clk 0:00:14.4]} 46... Nb5 {[%clk 0:00:54.7]} 47.
Bb4 {[%clk 0:00:13.3]} 47... Ke8 {[%clk 0:00:52.2]} 48. Bd2 {[%clk 0:00:07.4]}
48... Kf7 {[%clk 0:00:48.2]} 49. Kf2 {[%clk 0:00:07]} 49... g4 {[%clk
0:00:44.9]} 50. hxg4 {[%clk 0:00:05.3]} 50... hxg4 {[%clk 0:00:45]} 51. Kg3
{[%clk 0:00:06.2]} 51... c3 {[%clk 0:00:44.5]} 52. Be3 {[%clk 0:00:06.3]} 52...
c2 {[%clk 0:00:42.6]} 53. Kxg4 {[%clk 0:00:05.7]} 53... Nc3 {[%clk 0:00:35.8]}
54. Kf3 {[%clk 0:00:04.5]} 54... Na2 {[%clk 0:00:33.6]} 55. Ke2 {[%clk
0:00:03.4]} 55... c1=Q {[%clk 0:00:33.2]} 56. Bxc1 {[%clk 0:00:03.8]} 56...
Nxc1+ {[%clk 0:00:33.2]} 57. Ke3 {[%clk 0:00:04.3]} 57... Nb3 {[%clk 0:00:29.2]}
58. fxe6+ {[%clk 0:00:04.7]} 58... Kxe6 {[%clk 0:00:28.7]} 59. Kd3 {[%clk
0:00:05.6]} 59... Nc5+ {[%clk 0:00:27.9]} 60. Ke3 {[%clk 0:00:06.1]} 60... Kxe5
{[%clk 0:00:27.4]} 61. Kf3 {[%clk 0:00:06.7]} 61... Nxe4 {[%clk 0:00:28.3]}
1/2-1/2

[Event "*** Titled Tuesday Blitz"]
[Site "Chess.com"]
[Date "2020.04.07"]
[Round "4"]
[White "BahadirOzen"]
[Black "SCIM"]
[Result "1/2-1/2"]
[WhiteElo "2751"]
[BlackElo "2483"]
[TimeControl "180+1"]
[EndTime "13:42:13 PDT"]
[Termination "Game drawn - insufficient material"]

1. Nf3 {[%clk 0:03:00.9]} 1... Nf6 {[%clk 0:02:59.4]} 2. c4 {[%clk 0:03:01]}
2... c5 {[%clk 0:02:59.4]} 3. Nc3 {[%clk 0:02:59.5]} 3... d5 {[%clk 0:02:59.4]}
4. cxd5 {[%clk 0:02:55.4]} 4... Nxd5 {[%clk 0:03:00.3]} 5. e4 {[%clk 0:02:55.8]}
5... Nb4 {[%clk 0:03:00.5]} 6. Bc4 {[%clk 0:02:47.2]} 6... Nd3+ {[%clk
0:03:00.1]} 7. Ke2 {[%clk 0:02:45.4]} 7... Nf4+ {[%clk 0:03:00.3]} 8. Kf1 {[%clk
0:02:45.8]} 8... Ne6 {[%clk 0:03:00.9]} 9. d3 {[%clk 0:02:22.7]} 9... g6 {[%clk
0:03:00]} 10. Be3 {[%clk 0:02:11.1]} 10... Bg7 {[%clk 0:03:00.1]} 11. Bxe6
{[%clk 0:01:54.1]} 11... Bxe6 {[%clk 0:02:58.4]} 12. d4 {[%clk 0:01:53.9]} 12...
cxd4 {[%clk 0:02:54.6]} 13. Bxd4 {[%clk 0:01:53.9]} 13... O-O {[%clk 0:02:49.4]}
14. Bxg7 {[%clk 0:01:33.8]} 14... Qxd1+ {[%clk 0:02:49]} 15. Rxd1 {[%clk
0:01:33.1]} 15... Kxg7 {[%clk 0:02:49.9]} 16. Ke2 {[%clk 0:01:26.7]} 16... Nc6
{[%clk 0:02:48.4]} 17. Nd4 {[%clk 0:01:26.5]} 17... Nxd4+ {[%clk 0:02:44.6]} 18.
Rxd4 {[%clk 0:01:27.4]} 18... Rac8 {[%clk 0:02:43.5]} 19. Rhd1 {[%clk
0:01:24.7]} 19... a6 {[%clk 0:02:42.3]} 20. Ke3 {[%clk 0:01:24]} 20... b5 {[%clk
0:02:40.4]} 21. f3 {[%clk 0:01:14]} 21... Rc5 {[%clk 0:02:39.6]} 22. a3 {[%clk
0:01:11.8]} 22... a5 {[%clk 0:02:31]} 23. Nd5 {[%clk 0:01:08.2]} 23... Re8
{[%clk 0:02:13]} 24. b4 {[%clk 0:01:02.2]} 24... axb4 {[%clk 0:02:10.6]} 25.
axb4 {[%clk 0:01:03.1]} 25... Rc2 {[%clk 0:02:06.7]} 26. R1d2 {[%clk 0:01:03.1]}
26... Rc1 {[%clk 0:02:02.9]} 27. Rd1 {[%clk 0:01:01.5]} 27... Rc6 {[%clk
0:01:59.5]} 28. Ra1 {[%clk 0:00:50.4]} 28... Rc2 {[%clk 0:01:56.3]} 29. Rd2
{[%clk 0:00:42.6]} 29... Rxd2 {[%clk 0:01:51.8]} 30. Kxd2 {[%clk 0:00:43.5]}
30... Bxd5 {[%clk 0:01:49.6]} 31. exd5 {[%clk 0:00:44.4]} 31... Rd8 {[%clk
0:01:50.1]} 32. Ke3 {[%clk 0:00:41.6]} 32... Rxd5 {[%clk 0:01:49.4]} 33. Ra6
{[%clk 0:00:41.5]} 33... e6 {[%clk 0:01:48.9]} 34. Rb6 {[%clk 0:00:41.2]} 34...
Kf6 {[%clk 0:01:48.6]} 35. f4 {[%clk 0:00:40.7]} 35... g5 {[%clk 0:01:43.9]} 36.
g3 {[%clk 0:00:40.1]} 36... gxf4+ {[%clk 0:01:40.2]} 37. gxf4 {[%clk 0:00:40]}
37... h5 {[%clk 0:01:36.6]} 38. Rb7 {[%clk 0:00:34.2]} 38... Kg6 {[%clk
0:01:29.3]} 39. h3 {[%clk 0:00:31.5]} 39... Kf6 {[%clk 0:01:24.3]} 40. Ke4
{[%clk 0:00:31.4]} 40... Kg6 {[%clk 0:01:19.8]} 41. Ke3 {[%clk 0:00:31.1]} 41...
h4 {[%clk 0:01:12.3]} 42. Ke4 {[%clk 0:00:31]} 42... Kf6 {[%clk 0:01:11.8]} 43.
Ke3 {[%clk 0:00:25.8]} 43... e5 {[%clk 0:01:10.6]} 44. fxe5+ {[%clk 0:00:24.9]}
44... Rxe5+ {[%clk 0:01:10.5]} 45. Kf4 {[%clk 0:00:23.5]} 45... Rf5+ {[%clk
0:01:08.7]} 46. Kg4 {[%clk 0:00:21.9]} 46... Rd5 {[%clk 0:01:08.7]} 47. Kxh4
{[%clk 0:00:15.2]} 47... Rd4+ {[%clk 0:01:08.9]} 48. Kg3 {[%clk 0:00:15.7]}
48... Rxb4 {[%clk 0:01:09.8]} 49. h4 {[%clk 0:00:16.3]} 49... Rb3+ {[%clk
0:01:06]} 50. Kg4 {[%clk 0:00:16.2]} 50... b4 {[%clk 0:01:04.1]} 51. h5 {[%clk
0:00:15.7]} 51... Rb1 {[%clk 0:01:04.2]} 52. h6 {[%clk 0:00:13.1]} 52... b3
{[%clk 0:00:50.4]} 53. Kg3 {[%clk 0:00:12.9]} 53... Kg6 {[%clk 0:00:33.1]} 54.
h7 {[%clk 0:00:07.4]} 54... Kxh7 {[%clk 0:00:23.1]} 55. Rxf7+ {[%clk 0:00:07.1]}
55... Kg6 {[%clk 0:00:24]} 56. Rb7 {[%clk 0:00:03.8]} 56... Kf5 {[%clk
0:00:24.4]} 57. Kf2 {[%clk 0:00:01.7]} 57... Ke4 {[%clk 0:00:09.8]} 58. Ke2
{[%clk 0:00:02]} 58... b2 {[%clk 0:00:07]} 59. Kd2 {[%clk 0:00:02.1]} 59... Rh1
{[%clk 0:00:07]} 60. Rxb2 {[%clk 0:00:01.8]} 60... Rh2+ {[%clk 0:00:05.9]} 61.
Kc3 {[%clk 0:00:02.7]} 61... Rh3+ {[%clk 0:00:06.1]} 62. Kb4 {[%clk 0:00:03]}
62... Kd4 {[%clk 0:00:04.8]} 63. Rb3 {[%clk 0:00:03.9]} 63... Rxb3+ {[%clk
0:00:04.4]} 64. Kxb3 {[%clk 0:00:04.8]} 1/2-1/2

[Event "*** Titled Tuesday Blitz"]
[Site "Chess.com"]
[Date "2020.04.07"]
[Round "4"]
[White "Funkmaus"]
[Black "otrov-11"]
[Result "0-1"]
[WhiteElo "2200"]
[BlackElo "2426"]
[TimeControl "180+1"]
[EndTime "13:42:14 PDT"]
[Termination "otrov-11 won by resignation"]

1. d4 {[%clk 0:03:00.9]} 1... Nf6 {[%clk 0:02:59.4]} 2. Nf3 {[%clk 0:03:01.1]}
2... d5 {[%clk 0:02:58.3]} 3. c4 {[%clk 0:03:00.1]} 3... e6 {[%clk 0:02:57.9]}
4. Nc3 {[%clk 0:02:58.7]} 4... b6 {[%clk 0:02:55.9]} 5. cxd5 {[%clk 0:02:57.2]}
5... exd5 {[%clk 0:02:55.7]} 6. Bg5 {[%clk 0:02:52.4]} 6... Bb7 {[%clk
0:02:53.8]} 7. e3 {[%clk 0:02:52.4]} 7... Nbd7 {[%clk 0:02:53.1]} 8. Bd3 {[%clk
0:02:52.2]} 8... Be7 {[%clk 0:02:52.9]} 9. O-O {[%clk 0:02:51.5]} 9... O-O
{[%clk 0:02:52.6]} 10. Rc1 {[%clk 0:02:50.1]} 10... a6 {[%clk 0:02:52.1]} 11. a3
{[%clk 0:02:33.4]} 11... g6 {[%clk 0:02:47.6]} 12. Qe2 {[%clk 0:02:15.3]} 12...
Re8 {[%clk 0:02:44.8]} 13. Rfd1 {[%clk 0:02:12.8]} 13... Nf8 {[%clk 0:02:43.6]}
14. b4 {[%clk 0:01:59.2]} 14... Ne6 {[%clk 0:02:41.7]} 15. Bh4 {[%clk
0:01:59.2]} 15... a5 {[%clk 0:02:31.8]} 16. Rb1 {[%clk 0:01:39.4]} 16... axb4
{[%clk 0:02:30]} 17. axb4 {[%clk 0:01:40.3]} 17... Ne4 {[%clk 0:02:01.2]} 18.
Bxe7 {[%clk 0:01:23.6]} 18... Nxc3 {[%clk 0:01:59.7]} 19. Bxd8 {[%clk
0:01:22.5]} 19... Nxe2+ {[%clk 0:01:59.2]} 20. Bxe2 {[%clk 0:01:22.4]} 20...
Rexd8 {[%clk 0:01:56.9]} 21. Ra1 {[%clk 0:01:07.4]} 21... f6 {[%clk 0:01:55.5]}
22. Rdc1 {[%clk 0:00:50.8]} 22... Kf7 {[%clk 0:01:51.7]} 23. Kf1 {[%clk
0:00:29.9]} 23... Ke7 {[%clk 0:01:50.1]} 24. Bd3 {[%clk 0:00:29.2]} 24... Kd6
{[%clk 0:01:49.1]} 25. Ke2 {[%clk 0:00:29.2]} 25... c5 {[%clk 0:01:37.1]} 26.
bxc5+ {[%clk 0:00:30.1]} 26... bxc5 {[%clk 0:01:38]} 27. dxc5+ {[%clk
0:00:28.1]} 27... Nxc5 {[%clk 0:01:38.9]} 28. Nd4 {[%clk 0:00:21.5]} 28... Rxa1
{[%clk 0:01:20]} 29. Rxa1 {[%clk 0:00:19.9]} 29... Ra8 {[%clk 0:01:20.7]} 30.
Rxa8 {[%clk 0:00:17.4]} 30... Bxa8 {[%clk 0:01:21.6]} 31. Kd2 {[%clk 0:00:13.8]}
31... Bc6 {[%clk 0:01:17]} 32. g3 {[%clk 0:00:13]} 32... Bd7 {[%clk 0:01:17]}
33. h4 {[%clk 0:00:12.4]} 33... f5 {[%clk 0:01:12.4]} 34. Bc2 {[%clk 0:00:12.3]}
34... Ke5 {[%clk 0:01:09.6]} 35. f4+ {[%clk 0:00:12.1]} 35... Kd6 {[%clk
0:01:08.6]} 36. Kc3 {[%clk 0:00:09.2]} 36... Be8 {[%clk 0:00:59.9]} 37. Kd2
{[%clk 0:00:08.7]} 37... Ke7 {[%clk 0:00:38.5]} 38. Kc3 {[%clk 0:00:09.2]} 38...
Kf6 {[%clk 0:00:38.1]} 39. Nf3 {[%clk 0:00:08.1]} 39... Nd7 {[%clk 0:00:34.7]}
40. Kd4 {[%clk 0:00:08]} 40... Bf7 {[%clk 0:00:34.9]} 41. Bb3 {[%clk 0:00:06.9]}
41... Nb6 {[%clk 0:00:34.6]} 42. Ne5 {[%clk 0:00:06.7]} 42... Bg8 {[%clk
0:00:32.8]} 43. Kc5 {[%clk 0:00:07.1]} 43... Nc8 {[%clk 0:00:26]} 44. Bxd5
{[%clk 0:00:07.4]} 44... Bxd5 {[%clk 0:00:26.8]} 45. Kxd5 {[%clk 0:00:08.1]}
45... Ne7+ {[%clk 0:00:27.7]} 46. Kd6 {[%clk 0:00:08.1]} 46... Nc8+ {[%clk
0:00:26.3]} 47. Kd7 {[%clk 0:00:07.9]} 47... Nb6+ {[%clk 0:00:26.3]} 48. Kc6
{[%clk 0:00:08]} 48... Na4 {[%clk 0:00:25.4]} 49. Kd5 {[%clk 0:00:08]} 49...
Nc3+ {[%clk 0:00:25.2]} 50. Kd4 {[%clk 0:00:08.2]} 50... Ne4 {[%clk 0:00:25.4]}
51. g4 {[%clk 0:00:07.6]} 51... Nf2 {[%clk 0:00:22.7]} 52. g5+ {[%clk 0:00:08]}
52... Ke7 {[%clk 0:00:20.3]} 53. Nc6+ {[%clk 0:00:07.8]} 53... Kf7 {[%clk
0:00:20.1]} 54. Ke5 {[%clk 0:00:08.2]} 54... Nd3+ {[%clk 0:00:19.8]} 55. Kd4
{[%clk 0:00:07.7]} 55... Ne1 {[%clk 0:00:19.9]} 56. e4 {[%clk 0:00:07.5]} 56...
Nf3+ {[%clk 0:00:19.4]} 57. Kd5 {[%clk 0:00:07.1]} 57... Nxh4 {[%clk 0:00:19.8]}
58. exf5 {[%clk 0:00:07.3]} 58... Nxf5 {[%clk 0:00:20.7]} 59. Ne5+ {[%clk
0:00:06.9]} 59... Kg7 {[%clk 0:00:20.6]} 60. Ng4 {[%clk 0:00:07.2]} 60... Ng3
{[%clk 0:00:20.3]} 61. Nf6 {[%clk 0:00:07.7]} 61... Ne2 {[%clk 0:00:20.1]} 62.
Ke5 {[%clk 0:00:08.6]} 62... Ng3 {[%clk 0:00:19.4]} 63. f5 {[%clk 0:00:09.1]}
63... Nxf5 {[%clk 0:00:19.2]} 64. Kf4 {[%clk 0:00:07.5]} 64... h6 {[%clk
0:00:17.7]} 65. Ne4 {[%clk 0:00:06.9]} 65... h5 {[%clk 0:00:16.3]} 66. Nc5
{[%clk 0:00:04.4]} 66... Ne7 {[%clk 0:00:16.1]} 67. Ne6+ {[%clk 0:00:04.5]}
67... Kf7 {[%clk 0:00:16.6]} 68. Nd4 {[%clk 0:00:04.4]} 68... Nd5+ {[%clk
0:00:15.4]} 69. Ke5 {[%clk 0:00:04.5]} 69... Ne3 {[%clk 0:00:15.2]} 70. Ne6
{[%clk 0:00:05.3]} 70... Ng4+ {[%clk 0:00:14.9]} 71. Kd5 {[%clk 0:00:04.7]}
71... h4 {[%clk 0:00:14.5]} 72. Nf4 {[%clk 0:00:05]} 72... Nf2 {[%clk
0:00:13.5]} 73. Kd4 {[%clk 0:00:04.9]} 73... h3 {[%clk 0:00:12.7]} 74. Ke3
{[%clk 0:00:04.7]} 74... h2 {[%clk 0:00:13]} 0-1